Cogmind - Beta 13 *** ADVENTURER MODE // 2024.04.10 @ 18:16:57 Player: Teromax34 Result: Self-destructed Performance ------------- Evolutions (2) 1000 Regions Visited (5) 1000 Robots Destroyed (53) 265 Value Destroyed (1465) 1465 Prototype IDs (2) 40 Alien Tech Used (0) 0 Bonus (27) 27 TOTAL SCORE: 3797 Bonus ------- High Alert Combat Kills 27 Cogmind --------- Core Integrity 526/550 Matter 300/300 Energy 160/160 System Corruption 0% Temperature Cool (0) Movement Core (500) Ox9 Location -8/Storage Parts ------- > --- POWER (1) -------- Light Nuclear Core > --- PROPULSION (3) --- (None) > --- UTILITY (4) ------ Improved Heat Sink Medium Storage Unit Signal Interpreter Light Armor Plating > --- WEAPON (3) ------- Beam Rifle Advanced Beam Cannon Heavy Assault Rifle > --- INVENTORY (10) --- Improved Ion Engine Heat Sink Mining Laser Peak State ------------ > --- POWER ------------ Light Nuclear Core > --- PROPULSION ------- Aluminum Leg Aluminum Leg Improved Aluminum Leg > --- UTILITY ---------- Improved Heat Sink Medium Storage Unit Sensor Array Signal Interpreter > --- WEAPON ----------- Particle Gun Advanced Beam Cannon Heavy Assault Rifle > --- INVENTORY -------- Improved Ion Engine Heat Sink Light Armor Plating Beam Rifle Mining Laser [Rating: 20] Favorites ----------- Power Light Ion Engine Engine Light Ion Engine Power Core Light Nuclear Core Propulsion Improved Aluminum Leg Treads Light Treads Leg Improved Aluminum Leg Utility Medium Storage Unit Device Sensor Array Storage Medium Storage Unit Processor Signal Interpreter Protection Light Armor Plating Weapon Assault Rifle Energy Gun EM Pulse Gun Energy Cannon Advanced Beam Cannon Ballistic Gun Assault Rifle Build | -11 -10 -9 -9 -8 -8 ------- Run | Yrd Mat Mat Min Mat Sto Slots Evolved 4 | . . 2 . 2 . Power . | . . . . . . Propulsion 1 | . . 1 . . . Utility 2 | . . 1 . 1 . Weapon 1 | . . . . 1 . Parts Attached 42 | 6 3 20 7 6 . Power 7 | 1 . 3 1 2 . Engine 4 | 1 . 2 . 1 . Core 3 | . . 1 1 1 . Reactor . | . . . . . . Propulsion 12 | 2 . 8 2 . . Treads 3 | 2 . 1 . . . Leg 9 | . . 7 2 . . Wheel . | . . . . . . Hover . | . . . . . . Flight . | . . . . . . Utility 8 | 1 2 2 1 2 . Device 4 | . 1 1 1 1 . Storage 2 | 1 1 . . . . Processor 1 | . . 1 . . . Hackware . | . . . . . . Protection 1 | . . . . 1 . Artifact . | . . . . . . Weapon 15 | 2 1 7 3 2 . Energy Gun 11 | 1 1 6 1 2 . Energy Cannon 2 | . . 1 1 . . Ballistic Gun 2 | 1 . . 1 . . Ballistic Cannon . | . . . . . . Launcher . | . . . . . . Special Weapon . | . . . . . . Impact Weapon . | . . . . . . Slashing Weapon . | . . . . . . Piercing Weapon . | . . . . . . Special Melee Weapon . | . . . . . . Unidentified Prototypes 2 | . . 2 . . . Parts Lost 14 | . . 4 5 4 1 Power 2 | . . 1 1 . . Propulsion 6 | . . 1 2 2 1 Utility 1 | . . . . 1 . Weapon 5 | . . 2 2 1 . Highest Loss Streak 4 | . . 3 4 4 1 To Critical Strikes . | . . . . . . Average Slot Usage (%) 95 | . 94 99 94 79 81 Engine 7 | . 14 8 . . . Core 4 | . . 2 11 9 9 Treads 9 | . 28 5 . . . Leg 18 | . . 27 27 15 9 Device 10 | . 8 10 11 10 9 Storage 11 | . 14 11 11 9 9 Processor 7 | . . 11 11 9 9 Energy Gun 13 | . 14 17 8 8 9 Energy Cannon 3 | . . . 9 9 9 Ballistic Gun 7 | . 14 4 4 9 9 Naked Turns . | . . . . . . Heaviest Build 29 | 12 19 22 23 29 29 Greatest Support 60 | 40 40 60 39 33 10 Greatest Overweight (x) 2 | . . 1 1 2 2 Average Overweight (x) . | . . . . . 2 Largest Inventory Capacity 10 | 8 10 10 10 10 10 Average Capacity 9 | 6 8 10 10 10 10 Most Carried 8 | 2 5 8 7 6 3 Average Carried 4 | 1 2 4 5 4 3 Final Capacity 10 | 8 10 10 10 10 10 Final Carried 7 | 2 4 7 7 3 3 Class Distribution -------------------- 72% | Mutant 20% | Scavenger-Mutant Dominant Class ---------------- Mutant | -10/Materials Mutant | -9/Materials Mutant | -9/Mines Scavenger-Skirmisher | -8/Materials Scavenger-Tank | -8/Storage Resources | -11 -10 -9 -9 -8 -8 ----------- Run | Yrd Mat Mat Min Mat Sto Matter Collected 864 | 217 92 397 94 64 . Remotely . | . . . . . . Salvage Created 1804 | . 196 1077 395 136 . Parts 105 | . 15 62 19 9 . Haulers Intercepted . | . . . . . . Recyclers Shooed . | . . . . . . Parts Field Recycled . | . . . . . . Retrieved Matter . | . . . . . . Parts Self-Destructed . | . . . . . . Prevented . | . . . . . . Kills | -11 -10 -9 -9 -8 -8 ------- Run | Yrd Mat Mat Min Mat Sto Combat Hostiles Destroyed 47 | . 3 27 13 4 . Melee 1 | . . 1 . . . Guns 30 | . 3 23 2 2 . Cannons 11 | . . . 9 2 . AOE 3 | . . 3 . . . Classes Destroyed 5 | . 2 3 . . . Builder 1 | . . 1 . . . Watcher 5 | . 2 2 . 1 . Swarmer 17 | . . 6 8 3 . Grunt 24 | . 3 18 3 . . Sentry 6 | . . 3 2 1 . Best Kill Streak 4 | . 2 4 4 3 . Combat Bots Only 4 | . 2 4 4 3 . Max Kills in Single Turn 3 | . 1 3 1 1 . Gunslinging . | . . . . . . Exploded 1 | . . 1 . . . Melee 1 | . . 1 . . . Uniques/NPCs Destroyed . | . . . . . . Combat | -11 -10 -9 -9 -8 -8 -------- Run | Yrd Mat Mat Min Mat Sto Hostile Shots Fired 243 | . 14 100 81 46 2 Missed 57 | . 3 29 16 9 . Damage Taken 1739 | . 99 781 544 291 24 Core 289 | . . 181 84 24 . Absorbed by Shields . | . . . . . . Ignored by Resistances 525 | . 33 236 161 88 7 Core Remaining (%) 77 | 100 100 . 33 . . Volleys Fired 116 | . 13 68 27 8 . Largest 3 | . 2 2 2 3 . Hottest 156 | . 60 128 124 156 . Shots Fired 229 | . 26 129 51 23 . Gun 199 | . 26 129 29 15 . Cannon 30 | . . . 22 8 . Launcher . | . . . . . . Special . | . . . . . . Kinetic 65 | . 13 31 13 8 . Thermal 95 | . . 44 36 15 . Explosive . | . . . . . . Electromagnetic 69 | . 13 54 2 . . Robot Hit Streak 17 | . 7 13 17 16 . Robot Miss Streak 3 | . 2 3 2 3 . Penetration Max . | . . . . . . Secondary Targets 2 | . . 2 . . . Max Gunslinging Chain 1 | . . 1 . . . Shots Hit Robots 165 | . 18 98 36 13 . Core Hits 71 | . 9 44 12 6 . Critical Kills 2 | . . . 1 1 . Critical Parts Destroyed . | . . . . . . Critical Strikes 8 | . . 5 2 1 . Burn 5 | . . 4 1 . . Meltdown 2 | . . . 1 1 . Corrupt 1 | . . 1 . . . Melee Attacks . | . . . . . . Impact . | . . . . . . Slashing . | . . . . . . Piercing . | . . . . . . Sneak Attacks . | . . . . . . Combat Hostiles . | . . . . . . Follow-up Attacks . | . . . . . . Damage Inflicted 2939 | . 257 1815 638 229 . Guns 2081 | . 257 1446 251 127 . Cannons 489 | . . . 387 102 . Explosions 364 | . . 364 . . . Melee . | . . . . . . Ramming 5 | . . 5 . . . Kinetic 435 | . 91 260 49 35 . Thermal 1691 | . . 930 567 194 . Explosive . | . . . . . . Electromagnetic 808 | . 166 620 22 . . Impact . | . . . . . . Slashing . | . . . . . . Piercing . | . . . . . . Highest Corruption . | . . . . . . Average Corruption . | . . . . . . Corruption Purged . | . . . . . . Corruption Blocked . | . . . . . . Overload Shots . | . . . . . . Overflow Damage 107 | . . 82 25 . . Projectiles 25 | . . . 25 . . Explosions 82 | . . 82 . . . Melee . | . . . . . . Knockbacks . | . . . . . . Impact . | . . . . . . Kinetic . | . . . . . . Secondary . | . . . . . . Self-Inflicted Damage 103 | . . 103 . . . Shots 3 | . . 3 . . . Rammed . | . . . . . . Targets Rammed 1 | . . 1 . . . Kicked 1 | . . 1 . . . Crushed . | . . . . . . Highest Temperature 511 | . 24 511 372 168 . Average Temperature 116 | . 13 116 175 79 . Received Heat Transfer 699 | . 72 426 138 54 9 Effects 9 | . . 7 2 . . Shutdowns 1 | . . 1 . . . Energy Bleed 3 | . . 1 2 . . Interference 2 | . . 2 . . . Matter Decay 2 | . . 2 . . . Damage (minor) 1 | . . 1 . . . Siege Activations . | . . . . . . Robots Corrupted . | . . . . . . Combat Hostiles . | . . . . . . Parts Fried 1 | . . 1 . . . Impact Corruptions . | . . . . . . Robots Melted 3 | . . . 2 1 . Combat Hostiles 2 | . . . 2 . . Parts Melted 14 | . . 4 6 4 . Heat Transferred 3619 | . . 1991 1221 407 . Parts Sabotaged . | . . . . . . Parts Stolen . | . . . . . . Parts Stripped . | . . . . . . Power Chain Reactions 4 | . . 4 . . . Alert | -11 -10 -9 -9 -8 -8 ------- Run | Yrd Mat Mat Min Mat Sto Peak Influence 442 | . 134 442 233 189 72 Initial 112 | . . . 112 76 67 Average 141 | . 32 239 142 139 67 Maximum Alert Level 2 | . . 2 1 . . Low Security (%) 70 | 100 100 33 77 100 100 Level 1 28 | . . 63 22 . . Level 2 1 | . . 3 . . . Level 3 . | . . . . . . Level 4 . | . . . . . . Level 5 . | . . . . . . High Security . | . . . . . . Max Security . | . . . . . . Squads Dispatched 2 | . 1 1 . . . Investigation 2 | . 1 1 . . . Extermination . | . . . . . . Reinforcement . | . . . . . . Assault . | . . . . . . Garrison . | . . . . . . Intercept . | . . . . . . Searches Triggered . | . . . . . . Construction Impeded . | . . . . . . Haulers Reinforced . | . . . . . . Active Scanning Responses . | . . . . . . Cargo Convoy Interrupts . | . . . . . . Stealth | -11 -10 -9 -9 -8 -8 --------- Run | Yrd Mat Mat Min Mat Sto Distress Signals 5 | . . 4 . 1 . Communications Jammed . | . . . . . . Distress Signals . | . . . . . . Times Spotted 63 | . 5 35 13 9 1 Peak Tracking Total 5 | . 2 5 4 5 1 Tactical Retreats 3 | . . . 1 2 . Traps | -11 -10 -9 -9 -8 -8 ------- Run | Yrd Mat Mat Min Mat Sto Traps Triggered 4 | . 1 3 . . . Indirectly . | . . . . . . Trap Hack Attempts . | . . . . . . Triggered . | . . . . . . Disarmed . | . . . . . . Reprogrammed . | . . . . . . Reused . | . . . . . . Traps Extracted . | . . . . . . Installed . | . . . . . . Triggered . | . . . . . . Machines | -11 -10 -9 -9 -8 -8 ---------- Run | Yrd Mat Mat Min Mat Sto Machines Disabled 5 | . . 3 2 . . Max in Single Turn 2 | . . 2 1 . . Machines Repaired . | . . . . . . Machines Dismantled . | . . . . . . Machines Sabotaged . | . . . . . . Overloaded Fab Kills . | . . . . . . Hacking | -11 -10 -9 -9 -8 -8 --------- Run | Yrd Mat Mat Min Mat Sto Machines Accessed 6 | . 4 2 . . . Terminals 6 | . 4 2 . . . Fabricators . | . . . . . . Repair Stations . | . . . . . . Recycling Units . | . . . . . . Scanalyzers . | . . . . . . Garrison Access . | . . . . . . Total Hacks 13 | . 7 6 . . . Successful 10 | . 5 5 . . . Failed 2 | . 2 . . . . Catastrophic 1 | . 1 . . . . Database Lockouts 1 | . . 1 . . . Manual . | . . . . . . Terminals 13 | . 7 6 . . . Fabricators . | . . . . . . Repair Stations . | . . . . . . Recycling Units . | . . . . . . Scanalyzers . | . . . . . . Garrison Access . | . . . . . . Terminal Hacks 10 | . 5 5 . . . Record 7 | . 2 5 . . . Robot Analysis 1 | . 1 . . . . Alert Level 1 | . 1 . . . . Zone Layout 1 | . 1 . . . . Fabricator Hacks . | . . . . . . Repair Station Hacks . | . . . . . . Recycling Unit Hacks . | . . . . . . Scanalyzer . | . . . . . . Garrison Access Hacks . | . . . . . . Unauthorized Hacks . | . . . . . . Terminals . | . . . . . . Fabricators . | . . . . . . Repair Stations . | . . . . . . Recycling Units . | . . . . . . Scanalyzers . | . . . . . . Garrison Access . | . . . . . . Data Cores Recovered 1 | . . . . 1 . Used . | . . . . . . Hacking Detections 4 | . 2 2 . . . Full Trace Events 1 | . . 1 . . . Feedback Events . | . . . . . . Feedback Blocked . | . . . . . . Robot Schematics Acquired . | . . . . . . Robots Built . | . . . . . . Authchips . | . . . . . . Time . | . . . . . . Total Robot Build Rating . | . . . . . . Part Schematics Acquired . | . . . . . . Parts Built . | . . . . . . Authchips . | . . . . . . Time . | . . . . . . Total Part Build Rating . | . . . . . . Parts Repaired . | . . . . . . Time . | . . . . . . Parts Recycled . | . . . . . . Recycled Matter . | . . . . . . Retrieved Matter . | . . . . . . Retrieved Components . | . . . . . . Parts Scanalyzed . | . . . . . . Part Schematics Acquired . | . . . . . . Parts Damaged . | . . . . . . Bothacking | -11 -10 -9 -9 -8 -8 ------------ Run | Yrd Mat Mat Min Mat Sto Used RIF Installer . | . . . . . . Robots Hacked . | . . . . . . Non-combat . | . . . . . . Combat . | . . . . . . Robot Hacks Applied . | . . . . . . Relay Couplers Released . | . . . . . . Fabnet Peak Effective % . | . . . . . . Robots Rewired . | . . . . . . Allies Hacked . | . . . . . . Hacks Repelled . | . . . . . . Allies | -11 -10 -9 -9 -8 -8 -------- Run | Yrd Mat Mat Min Mat Sto Total Allies 1 | . . . 1 . . Largest Group 1 | . . . 1 1 . Highest-Rated Group 31 | . . . 31 31 . Highest-Rated Ally 31 | . . . 31 31 . Total Orders . | . . . . . . Ally Attacks 3 | . . . . 3 . Total Damage 21 | . . . . 21 . Kills 1 | . . . . 1 . Allies Corrupted . | . . . . . . Allies Melted . | . . . . . . Intel | -11 -10 -9 -9 -8 -8 ------- Run | Yrd Mat Mat Min Mat Sto Robot Analysis Total 1 | . 1 . . . . Derelict Logs Recovered 1 | . . . 1 . . Drone Launches . | . . . . . . Drone Recoveries . | . . . . . . Exploration | -11 -10 -9 -9 -8 -8 ------------- Run | Yrd Mat Mat Min Mat Sto Turns Passed 2471 | 112 662 896 629 153 19 Spaces Moved 1450 | 61 384 500 433 65 7 Core 5 | 5 . . . . . Treads 509 | 56 384 69 . . . Legs 936 | . . 431 433 65 7 Wheels . | . . . . . . Hover . | . . . . . . Flight . | . . . . . . Fastest Speed 50 | 50 160 120 120 120 260 Average Speed 137 | 150 160 125 120 188 260 Slowest Speed 260 | 160 160 190 190 260 260 Overloaded Moves . | . . . . . . Propulsion Burnouts . | . . . . . . Robots Hopped . | . . . . . . Cave-ins Triggered . | . . . . . . Exploration Rate (%) 27 | 4 45 40 67 6 3 Regions Visited 5 Branch Regions 2 Pre-discovered Areas . | . . . . . . Known Exits Taken 3 | . . 1 1 1 . Unknown Exits Taken 2 | 1 1 . . . . Scrap Searched 2 | . . . 2 . . Spaces Dug . | . . . . . . Terrain Destroyed 26 | . . 26 . . . Melee . | . . . . . . Projectile . | . . . . . . AOE 26 | . . 26 . . . Terrain Rammed . | . . . . . . Walls Destroyed . | . . . . . . Machines Disabled . | . . . . . . Actions | -11 -10 -9 -9 -8 -8 --------- Run | Yrd Mat Mat Min Mat Sto Total 1691 | 78 405 636 487 78 7 Wait 49 | 10 . 22 17 . . Move 1445 | 60 383 499 432 64 7 Hop . | . . . . . . Pick Up 28 | 2 4 18 4 . . Fast Attach 10 | 6 1 2 1 . . Attach 18 | . . 10 4 4 . Detach 1 | . . 1 . . . Swap 15 | . 2 9 2 2 . Drop 8 | . 2 6 . . . Fire 116 | . 13 68 27 8 . Melee . | . . . . . . Ram . | . . . . . . Kick 1 | . . 1 . . . Crush . | . . . . . . Escape Stasis . | . . . . . . Rewire . | . . . . . . Trap . | . . . . . . Miscellaneous . | . . . . . . Route ------- -11/Scrapyard -10/Materials -9/Materials -9/Mines -8/Materials (discovered 2 exits: Fac / *Sto) -8/Storage History --------- Turn | Location | Event 12 | -11/Scrapyard | Discovered new exit (range 14) 113 | -11/Scrapyard | Entered Materials 304 | -10/Materials | Build established: Mutant 644 | -10/Materials | Discovered new exit (range 16) 775 | -10/Materials | Entered another Materials area 775 | -9/Materials | Evolved 2 slots: Propulsion x1, Utility x1 1020 | -9/Materials | Central database locked down 1203 | -9/Materials | Lost 3 parts (1p2w) 1470 | -9/Materials | Discovered new exit (range 15) 1668 | -9/Materials | Identified exit to Mines 1671 | -9/Materials | Entered Mines 1764 | -9/Mines | Core integrity fell below 50% 1791 | -9/Mines | Lost 4 parts (2n2w) 1887 | -9/Mines | Learned 2 Materials zone layouts 2284 | -9/Mines | Discovered new exit (range 9) 2287 | -9/Mines | Received a Mining Laser from a helpful Derelict 2292 | -9/Mines | Identified exit to Materials 2300 | -9/Mines | Entered Materials 2300 | -8/Materials | Accompanied by 1 ally 2300 | -8/Materials | Evolved 2 slots: Utility x1, Weapon x1 2301 | -8/Materials | Identified exit to Factory 2335 | -8/Materials | Discovered new exit (range 14) 2419 | -8/Materials | Lost 4 parts (2n1u1w) 2448 | -8/Materials | Identified exit to Storage 2453 | -8/Materials | Entered Storage 2472 | -8/Storage | Self-destructed Last Messages --------------- S-10 Pest destroyed. Particle Gun destroyed. S-10 Pest destroyed. Acquired 34 matter. Acquired 15 matter. U-05 Engineer builds a Door. K-01 Serf collects debris. Acquired 5 matter. K-01 Serf collects debris. K-01 Serf cleans the Terminal. K-01 Serf collects debris. Acquired 10 matter. R-06 Scavenger collects Lgt. Armor Plating. R-06 Scavenger collects Imp. Ion Engine. K-01 Serf collects debris. EXIT=IDENTIFIED: STORAGE K-01 Serf collects debris. LOCATION=STORAGE GOAL=ESCAPE Aluminum Leg destroyed. Map ----- +----------------------------------------------------+ | ???????????????????????????????? | | ???????????????????????????????? | | ???????????????????????????????? | | ???????????????????????????????? | | ???????????????????????????????? | | ???????????????????????????????? | | ???????????????????????????????? | | ???????????????????????????????? | | ???????????????????????????????? | | ???????????????????????????????? | | ??????????????????????? Y ?????? | | ?????????????????????? ?????? | | ?????????????????????? ?????? | | ??????????????????????# ?????? | | ??????????????????????# ?????? | | ??????????????????????# ?????? | | ??????????????????????# ?????? | | ??????????????????????# #????? | | ??????????????????????# #????? | | ??????????????????????# #????? | | ??????????????????????# #????? | | ??????????????????????# #????? | | ??????????????????????# #????? | | ??????????????????????# #????? | | ??????????????????????# #????? | | ??????????????????????# @#????? | | ??????????????????????# #????? | | ??????????????????????# #????? | | ??????????????????????# #????? | | ??????????????????????# #????? | | ??????????????????????# #????? | | ??????????????????????# #????? | | ??????????????????????# #????? | | ??????????????????????#####????? | | ???????????????????????????????? | | ???????????????????????????????? | | ???????????????????????????????? | | ???????????????????????????????? | | ???????????????????????????????? | | ???????????????????????????????? | | ???????????????????????????????? | | ???????????????????????????????? | | ???????????????????????????????? | | ???????????????????????????????? | | ???????????????????????????????? | | ???????????????????????????????? | | | | | | | | | +----------------------------------------------------+ Best States ------------- Heat Dissipation 45 Energy Generation 14 Energy Capacity 250 Matter Stores 300 Matter Capacity 300 Sight Range 16 Robot Scan Range 14 Terrain Scan Density 10 Armor Coverage 150 Resistance: KI 20 Resistance: TH 20 Resistance: EX 20 Resistance: EM 20 Resistance: I 20 Resistance: S 20 Resistance: P 20 Evasion (%) 55 Recoil Reduction 3 Offensive Hacking 10 Item Schematics ----------------- None Robot Schematics ------------------ None Fabricated ------------ Nothing Alien Tech Used ----------------- None Achievements -------------- None Challenges ------------ None Game ------ Seed LauncherNeutronChronowheel Manual? 0 Play Time 00:26:10 Cumulative 3.3 hours Start 2024.04.10 @ 17:49:51 End 2024.04.10 @ 18:16:57 Sessions 1 Manual Loads 0 Difficulty Adventurer Special Mode None Game No. 8 Rogue 0 Adventurer 8 Explorer 0 Win Type - Total 0 Types 0/0/0/0/0/0/0/0/0 Lore% 6 Gallery% 9 Achievement% 10 Wizard Run 0 Options --------- Layout 1 ASCII 0 Keyboard 0 Movement Arrows Keybinds 0 Fullscreen 1 Font 20/SmallcapsGlow Map View 50x35 Zoom Use 0% Tactical HUD 0 Map Filters NONE Filters NONE Steam 1 RUN: 580d7b92-23fe-4d0e-863b-820bf5d5354d